fUSD/lending_fUSD_20241016
["ID","MTS","AMOUNT","RATE_DAILY","PERIOD"]
[340332088,1729051858237,-632.42,0.00010999,2]
[340332089,1729051858248,-632.42,0.00010999,2]
[340332090,1729051858258,-632.42,0.00010999,2]
[340332091,1729051858268,-500.0,0.00010999,2]
[340332092,1729051858277,-632.42,0.00010999,2]
[340332093,1729051858286,-500.0,0.00010999,2]
[340332094,1729051858295,-632.42,0.00010999,2]
[340332095,1729051858304,-500.0,0.00010999,2]
[340332096,1729051858314,-632.42,0.00010999,2]
[340332097,1729051858323,-500.0,0.00010999,2]
[340332098,1729051858332,-632.42,0.00010999,2]
[340332099,1729051858341,-500.0,0.00010999,2]
[340332100,1729051858350,-632.42,0.00010999,2]
[340332101,1729051858359,-500.0,0.00010999,2]
[340332102,1729051858369,-632.42,0.00010999,2]
[340332103,1729051858378,-500.0,0.00010999,2]
[340332104,1729051858388,-632.42,0.00010999,2]
[340332105,1729051858397,-500.0,0.00010999,2]
[340332106,1729051858406,-632.42,0.00010999,2]
[340332107,1729051858416,-632.42,0.00010999,2]
[340332108,1729051858426,-500.0,0.00010999,2]
[340332109,1729051858436,-632.42,0.00010999,2]
[340332110,1729051858445,-500.0,0.00010999,2]
[340332111,1729051858455,-500.0,0.00010999,2]
[340332112,1729051858465,-632.43748983,0.00010999,2]
[340332113,1729051858475,-220.19072686,0.00010999,2]
[340332114,1729051858486,-500.0,0.00010999,2]
[340332115,1729051858496,-500.0,0.00010999,2]
[340332116,1729051858506,-500.0,0.00010999,2]
[340332117,1729051858516,-500.0,0.00010999,2]
[340332118,1729051858525,-244.98079138,0.00010999,2]
[340332119,1729051858537,-500.0,0.00010999,2]
[340332120,1729051858547,-500.0,0.00010999,2]
[340332121,1729051858558,-500.0,0.00010999,2]
[340332122,1729051858569,-500.0,0.00010999,2]
[340332123,1729051858579,-500.0,0.00010999,2]
[340332124,1729051858591,-500.0,0.00010999,2]
[340332125,1729051858602,-500.0,0.00010999,2]
[340332126,1729051858612,-500.0,0.00010999,2]
[340332127,1729051858623,-500.0,0.00010999,2]
[340332128,1729051858633,-500.0,0.00010999,2]
[340332129,1729051858642,-500.0,0.00010999,2]
[340332130,1729051858652,-500.0,0.00010999,2]
[340332131,1729051858662,-500.0,0.00010999,2]
[340332132,1729051858671,-500.0,0.00010999,2]
[340332133,1729051858680,-500.0,0.00010999,2]
[340332134,1729051858690,-500.0,0.00010999,2]
[340332135,1729051858699,-560.33488751,0.00010999,2]
[340332136,1729051858708,-1127.97,0.00010999,2]
[340332137,1729051858718,-1127.97,0.00010999,2]
[340332138,1729051858726,-1127.97,0.00010999,2]
[340332139,1729051858735,-1127.97,0.00010999,2]
[340332140,1729051858744,-1127.97,0.00010999,2]
[340332141,1729051858754,-1127.97,0.00010999,2]
[340332142,1729051858763,-1127.97,0.00010999,2]
[340332143,1729051858772,-1127.97,0.00010999,2]
[340332144,1729051858781,-1127.97,0.00010999,2]
[340332145,1729051858789,-1127.97,0.00010999,2]
[340332146,1729051858798,-1127.97,0.00010999,2]
[340332147,1729051858807,-1127.97,0.00010999,2]
[340332148,1729051858816,-1127.97,0.00010999,2]
[340332149,1729051858825,-1127.97,0.00010999,2]
[340332150,1729051858834,-1127.97,0.00010999,2]
[340332151,1729051858845,-1127.97,0.00010999,2]
[340332152,1729051858855,-1127.97,0.00010999,2]
[340332153,1729051858864,-1127.97,0.00010999,2]
[340332154,1729051858875,-1127.98537685,0.00010999,2]
[340332155,1729051858885,-500.0,0.00010999,2]
[340332156,1729051858896,-500.0,0.00010999,2]
[340332157,1729051858906,-500.0,0.00010999,2]
[340332158,1729051858916,-500.0,0.00010999,2]
[340332159,1729051858926,-500.0,0.00010999,2]
[340332160,1729051858936,-500.0,0.00010999,2]
[340332161,1729051858946,-500.0,0.00010999,2]
[340332162,1729051858955,-500.0,0.00010999,2]
[340332163,1729051858964,-645.59076119,0.00010999,2]
[340332164,1729051858973,-708.01,0.00010999,2]
[340332165,1729051858982,-708.01,0.00010999,2]
[340332166,1729051858991,-708.01,0.00010999,2]
[340332167,1729051859002,-708.01,0.00010999,2]
[340332168,1729051859011,-708.01,0.00010999,2]
[340332169,1729051859020,-708.01,0.00010999,2]
[340332170,1729051859031,-708.01,0.00010999,2]
[340332171,1729051859162,-708.01,0.00010999,2]
[340332172,1729051859172,-708.01,0.00010999,2]
[340332173,1729051859185,-708.01,0.00010999,2]
[340332174,1729051859194,-708.01,0.00010999,2]
[340332175,1729051859203,-708.01,0.00010999,2]
[340332176,1729051859213,-708.01,0.00010999,2]
[340332177,1729051859222,-708.01,0.00010999,2]
[340332178,1729051859231,-708.01,0.00010999,2]
[340332179,1729051859240,-708.01,0.00010999,2]
[340332180,1729051859249,-708.01,0.00010999,2]
[340332181,1729051859264,-708.01,0.00010999,2]
[340332182,1729051859274,-708.1812074,0.00010999,2]
[340332183,1729051859282,-500.0,0.00010999,2]
[340332184,1729051859292,-500.0,0.00010999,2]
[340332185,1729051859301,-500.0,0.00010999,2]
[340332186,1729051859310,-500.0,0.00010999,2]
[340332187,1729051859320,-500.0,0.00010999,2]
[340332188,1729051859329,-500.0,0.00010999,2]
[340332189,1729051859338,-500.0,0.00010999,2]
[340332190,1729051859349,-634.42442889,0.00010999,2]
[340332191,1729051859358,-500.0,0.00010999,2]
[340332192,1729051859367,-500.0,0.00010999,2]
[340332193,1729051859377,-500.0,0.00010999,2]
[340332194,1729051859385,-500.0,0.00010999,2]
[340332195,1729051859394,-500.0,0.00010999,2]
[340332196,1729051859404,-500.0,0.00010999,2]
[340332197,1729051859413,-500.0,0.00010999,2]
[340332198,1729051859422,-500.0,0.00010999,2]
[340332199,1729051859431,-500.0,0.00010999,2]
[340332200,1729051859441,-500.0,0.00010999,2]
[340332201,1729051859450,-500.0,0.00010999,2]
[340332202,1729051859459,-250.5122036,0.00010999,2]
[340332203,1729051859468,-1340.0,0.00010999,2]
[340332204,1729051859477,-663.88,0.00010999,2]
[340332205,1729051859487,-1340.0,0.00010999,2]
[340332206,1729051859496,-663.88,0.00010999,2]
[340332207,1729051859507,-1340.0,0.00010999,2]
[340332208,1729051859515,-663.88,0.00010999,2]
[340332209,1729051859525,-1340.0,0.00010999,2]
[340332210,1729051859535,-663.88,0.00010999,2]
[340332211,1729051859546,-1340.0,0.00010999,2]
[340332212,1729051859556,-663.88,0.00010999,2]
[340332213,1729051859566,-1340.0,0.00010999,2]
[340332214,1729051859577,-663.88,0.00010999,2]
[340332215,1729051859586,-1340.0,0.00010999,2]
[340332216,1729051859597,-663.88,0.00010999,2]
[340332217,1729051859607,-1340.0,0.00010999,2]
[340332218,1729051859619,-663.88,0.00010999,2]
[340332219,1729051859630,-1340.0,0.00010999,2]
[340332220,1729051859641,-1340.0,0.00010999,2]
[340332221,1729051859650,-663.88,0.00010999,2]
[340332222,1729051859660,-1340.0,0.00010999,2]
[340332223,1729051859669,-663.88,0.00010999,2]
[340332224,1729051859679,-1340.0,0.00010999,2]
[340332225,1729051859688,-663.88,0.00010999,2]
[340332226,1729051859697,-1340.0,0.00010999,2]
[340332227,1729051859706,-663.88,0.00010999,2]
[340332228,1729051859715,-1340.0,0.00010999,2]
[340332229,1729051859725,-663.88,0.00010999,2]
[340332230,1729051859734,-1340.0,0.00010999,2]
[340332231,1729051859744,-663.88,0.00010999,2]
[340332232,1729051859754,-1340.0,0.00010999,2]
[340332233,1729051859763,-663.88,0.00010999,2]
[340332234,1729051859772,-1340.0,0.00010999,2]
[340332235,1729051859782,-663.88,0.00010999,2]
[340332236,1729051859791,-1340.17872198,0.00010999,2]
[340332237,1729051859802,-663.88,0.00010999,2]
[340332238,1729051859812,-663.88,0.00010999,2]
[340332239,1729051859822,-663.98073779,0.00010999,2]
[340332240,1729051859832,-500.0,0.00010999,2]
[340332241,1729051859842,-500.0,0.00010999,2]
[340332242,1729051859852,-649.72232074,0.00010999,2]
[340332243,1729051859863,-1011.36,0.00010999,2]
[340332244,1729051859872,-1011.36,0.00010999,2]
[340332245,1729051859883,-1011.36,0.00010999,2]
[340332246,1729051859892,-1011.36,0.00010999,2]
[340332247,1729051859903,-1011.36,0.00010999,2]
[340332248,1729051859914,-1011.36,0.00010999,2]
[340332249,1729051859924,-1011.36,0.00010999,2]
[340332250,1729051859934,-1011.36,0.00010999,2]
[340332251,1729051859943,-1011.36,0.00010999,2]
[340332252,1729051859953,-1858.59,0.00010999,2]
[340332253,1729051859964,-1011.36,0.00010999,2]
[340332254,1729051859974,-1858.59,0.00010999,2]
[340332255,1729051859984,-1011.36,0.00010999,2]
[340332256,1729051859994,-1858.59,0.00010999,2]
[340332257,1729051860011,-1011.36,0.00010999,2]
[340332258,1729051860022,-1858.59,0.00010999,2]
[340332259,1729051860031,-1011.36,0.00010999,2]
[340332260,1729051860041,-1858.59,0.00010999,2]
[340332261,1729051860052,-1011.36,0.00010999,2]
[340332262,1729051860062,-1858.59,0.00010999,2]
[340332263,1729051860071,-1011.36,0.00010999,2]
[340332264,1729051860082,-1011.36,0.00010999,2]
[340332265,1729051860092,-500.0,0.00010999,2]
[340332266,1729051860102,-1011.36,0.00010999,2]
[340332267,1729051860111,-500.0,0.00010999,2]
[340332268,1729051860121,-1858.59,0.00010999,2]
[340332269,1729051860130,-500.0,0.00010999,2]
[340332270,1729051860140,-1011.36,0.00010999,2]
[340332271,1729051860150,-1858.59,0.00010999,2]
[340332272,1729051860160,-500.0,0.00010999,2]
[340332273,1729051860171,-1011.57681882,0.00010999,2]
[340332274,1729051860184,-1858.59,0.00010999,2]
[340332275,1729051860193,-500.0,0.00010999,2]
[340332276,1729051860203,-1858.59,0.00010999,2]
[340332277,1729051860214,-500.0,0.00010999,2]
[340332278,1729051860224,-1858.59,0.00010999,2]
[340332279,1729051860235,-500.0,0.00010999,2]
[340332280,1729051860244,-1858.59,0.00010999,2]
[340332281,1729051860254,-500.0,0.00010999,2]
[340332282,1729051860265,-1858.59,0.00010999,2]
[340332283,1729051860275,-500.0,0.00010999,2]
[340332284,1729051860285,-1858.59,0.00010999,2]
[340332285,1729051860294,-500.0,0.00010999,2]
[340332286,1729051860304,-500.0,0.00010999,2]
[340332287,1729051860313,-1858.59,0.00010999,2]
[340332288,1729051860322,-1858.59,0.00010999,2]
[340332289,1729051860331,-500.0,0.00010999,2]
[340332290,1729051860341,-1858.59,0.00010999,2]
[340332291,1729051860351,-500.0,0.00010999,2]
[340332292,1729051860361,-1858.60535333,0.00010999,2]
[340332293,1729051860370,-500.0,0.00010999,2]
[340332294,1729051860379,-500.0,0.00010999,2]
[340332295,1729051860388,-500.0,0.00010999,2]
[340332296,1729051860399,-206.5015824,0.00010999,2]
[340332297,1729051860409,-830.98,0.00010999,2]
[340332298,1729051860419,-830.98,0.00010999,2]
[340332299,1729051860429,-830.98,0.00010999,2]
[340332300,1729051860439,-830.98,0.00010999,2]
[340332301,1729051860448,-500.0,0.00010999,2]
[340332302,1729051860457,-830.98,0.00010999,2]
[340332303,1729051860466,-500.0,0.00010999,2]
[340332304,1729051860475,-830.98,0.00010999,2]
[340332305,1729051860484,-500.0,0.00010999,2]
[340332306,1729051860494,-830.98,0.00010999,2]
[340332307,1729051860505,-500.0,0.00010999,2]
[340332308,1729051860514,-830.98,0.00010999,2]
[340332309,1729051860523,-594.5125076,0.00010999,2]
[340332310,1729051860533,-830.98,0.00010999,2]
[340332311,1729051860545,-830.98,0.00010999,2]
[340332312,1729051860554,-815.63,0.00010999,2]
[340332313,1729051860563,-830.98,0.00010999,2]
[340332314,1729051860572,-815.63,0.00010999,2]
[340332315,1729051860582,-830.98,0.00010999,2]
[340332316,1729051860591,-815.63,0.00010999,2]
[340332317,1729051860601,-830.98,0.00010999,2]
[340332318,1729051860610,-815.63,0.00010999,2]
[340332319,1729051860619,-136356.5988387,0.00011,2]
[340332320,1729051860969,-830.98,0.00010999,2]
[340332321,1729051860979,-449.83103182,0.00010999,2]
[340332322,1729051861002,-365.79896818,0.00010999,2]
[340332323,1729051861011,-302.01393085,0.00010999,2]
[340332324,1729051861023,-528.96606915,0.00010999,2]
[340332325,1729051861033,-815.63,0.00010999,2]
[340332326,1729051861042,-82.09434867,0.00010999,2]
[340332327,1729051861058,-306.09565174,0.00010999,2]
[340332328,1729051861147,-442.78999959,0.00010999,2]
[340332329,1729051861157,-815.63,0.00010999,2]
[340332330,1729051861167,-815.63,0.00010999,2]
[340332331,1729051861181,-830.98,0.00010999,2]
[340332332,1729051861191,-815.63,0.00010999,2]
[340332333,1729051861200,-831.00959013,0.00010999,2]
[340332334,1729051861209,-815.63,0.00010999,2]
[340332335,1729051861221,-815.63,0.00010999,2]
[340332336,1729051861231,-815.63,0.00010999,2]
[340332337,1729051861240,-9990.41688158,0.00011,2]
[340332338,1729051861254,-360.93484681,0.00011,2]
[340332339,1729051861265,-753.68927655,0.00011,2]
[340332341,1729052052869,250.0,0.00010093,2]
[340332343,1729052147526,250.0,0.0001008,2]
[340332346,1729052160908,501.88,8.219e-05,2]
[340332351,1729052390188,168.12,0.00010233,2]
[340332354,1729052539409,416.89,0.00010216,2]
[340332355,1729052612464,550.0,0.0001,2]
[340332363,1729052662986,250.0,8.219e-05,2]
[340332364,1729052663005,226.78,8.219e-05,2]
[340332365,1729052684023,250.0,0.00010074,2]
[340332368,1729052747391,250.0,0.00010024,2]
[340332371,1729052817936,73.22,0.00010042,2]
[340332372,1729052817956,800.0,0.00010042,2]
[340332373,1729052817977,800.0,0.00010042,2]
[340332374,1729052817997,800.0,0.00010042,2]
[340332375,1729052818017,300.0,0.00010042,2]
[340332376,1729052818041,21116.78,0.00010042,2]
[340332379,1729052842224,888.0,0.00027,60]
[340332386,1729052921383,18903.52197104,0.00027,60]
[340332394,1729053032192,-222.0,0.00010253,2]
[340332396,1729053032201,-1000.0,0.00010253,2]
[340332397,1729053032210,-476.78,0.00010481,2]
[340332398,1729053032219,-215.55,0.00010563,2]
[340332399,1729053032228,-183.4,0.00010616,2]
[340332400,1729053032237,-255.0,0.00010758,2]
[340332401,1729053032246,-359.24,0.000108,2]
[340332402,1729053032255,-429.63,0.000108,2]
[340332403,1729053032264,-266.0,0.000108,2]
[340332404,1729053032273,-336.9163,0.00010889,2]
[340332405,1729053032282,-1000.0,0.00010899,2]
[340332406,1729053032291,-288.0,0.00010899,2]
[340332407,1729053032300,-300.0,0.00010899,2]
[340332408,1729053032309,-150.0,0.00010899,2]
[340332409,1729053032318,-499.99,0.00010899,2]
[340332410,1729053032327,-1344.6763,0.000109,2]
[340332411,1729053032336,-755.88,0.000109,2]
[340332412,1729053032345,-249.24404326,0.000109,2]
[340332413,1729053032357,-506.63595674,0.000109,2]
[340332414,1729053032366,-177.00404326,0.000109,2]
[340332415,1729053032377,-578.87595674,0.000109,2]
[340332416,1729053032386,-755.88,0.000109,2]
[340332417,1729053032395,-1199.82206826,0.000109,2]
[340332418,1729053032406,-377.86782155,0.000109,2]
[340332419,1729053032417,-3688.47842181,0.000109,2]
[340332420,1729053032426,-859.51,0.000109,2]
[340332421,1729053032435,-273.40303312,0.000109,2]
[340332422,1729053032445,-27.40980121,0.000109,2]
[340332423,1729053032456,-446.44143429,0.000109,2]
[340332424,1729053032465,-173.39192528,0.000109,2]
[340332425,1729053032474,-424.17,0.000109,2]
[340332426,1729053032483,-196.359,0.00010913,2]
[340332427,1729053032493,-264.06,0.00010959,2]
[340332428,1729053032502,-160.46,0.00010959,2]
[340332429,1729053032511,-250.0,0.00010959,2]
[340332430,1729053032520,-160.81,0.00010959,2]
[340332431,1729053032530,-511.0601254,0.00010966,2]
[340332432,1729053032538,-2328.03824816,0.00010983,2]
[340332433,1729053032550,-463.05,0.00010983,2]
[340332434,1729053032561,-3091.91175184,0.00010983,2]
[340332435,1729053032570,-150.0,0.00010983,2]
[340332436,1729053032579,-612.801,0.00010983,2]
[340332437,1729053032589,-500.0,0.00010988,2]
[340332438,1729053032599,-500.0,0.00010996,2]
[340332439,1729053032608,-500.0,0.00010999,2]
[340332440,1729053032618,-500.0,0.00010999,2]
[340332441,1729053032627,-500.0,0.00010999,2]
[340332442,1729053032638,-500.0,0.00010999,2]
[340332443,1729053032647,-500.0,0.00010999,2]
[340332444,1729053032656,-500.0,0.00010999,2]
[340332445,1729053032665,-500.0,0.00010999,2]
[340332446,1729053032675,-500.0,0.00010999,2]
[340332447,1729053032683,-500.0,0.00010999,2]
[340332449,1729053032694,-500.0,0.00010999,2]
[340332451,1729053032703,-500.0,0.00010999,2]
[340332453,1729053032712,-500.0,0.00010999,2]
[340332455,1729053032722,-500.0,0.00010999,2]
[340332457,1729053032731,-500.0,0.00010999,2]
[340332458,1729053032740,-500.0,0.00010999,2]
[340332459,1729053032749,-500.0,0.00010999,2]
[340332460,1729053032758,-500.0,0.00010999,2]
[340332461,1729053032767,-500.0,0.00010999,2]
[340332462,1729053032777,-500.0,0.00010999,2]
[340332463,1729053032787,-500.0,0.00010999,2]
[340332464,1729053032799,-500.0,0.00010999,2]
[340332465,1729053032808,-500.0,0.00010999,2]
[340332466,1729053032817,-634.5959411,0.00010999,2]
[340332467,1729053032826,-500.0,0.00010999,2]
[340332468,1729053032835,-500.0,0.00010999,2]
[340332469,1729053032845,-500.0,0.00010999,2]
[340332470,1729053032854,-500.0,0.00010999,2]
[340332471,1729053032863,-500.0,0.00010999,2]
[340332472,1729053032874,-500.0,0.00010999,2]
[340332473,1729053032884,-500.0,0.00010999,2]
[340332474,1729053032895,-500.0,0.00010999,2]
[340332475,1729053032907,-500.0,0.00010999,2]
[340332476,1729053032919,-500.0,0.00010999,2]
[340332477,1729053032928,-500.0,0.00010999,2]
[340332478,1729053032939,-500.0,0.00010999,2]
[340332479,1729053032949,-500.0,0.00010999,2]
[340332480,1729053032958,-500.0,0.00010999,2]
[340332481,1729053032967,-500.0,0.00010999,2]
[340332482,1729053032976,-500.0,0.00010999,2]
[340332483,1729053032986,-500.0,0.00010999,2]
[340332484,1729053032996,-500.0,0.00010999,2]
[340332485,1729053033006,-500.0,0.00010999,2]
[340332486,1729053033015,-500.0,0.00010999,2]
[340332487,1729053033024,-603.20973668,0.00010999,2]
[340332488,1729053033034,-500.0,0.00010999,2]
[340332489,1729053033044,-500.0,0.00010999,2]
[340332490,1729053033052,-500.0,0.00010999,2]
[340332491,1729053033061,-500.0,0.00010999,2]
[340332492,1729053033070,-500.0,0.00010999,2]
[340332493,1729053033080,-500.0,0.00010999,2]
[340332494,1729053033089,-500.0,0.00010999,2]
[340332495,1729053033098,-560.43886618,0.00010999,2]
[340332496,1729053033107,-500.0,0.00010999,2]
[340332497,1729053033116,-500.0,0.00010999,2]
[340332498,1729053033125,-521.52009734,0.00010999,2]
[340332499,1729053033134,-500.0,0.00010999,2]
[340332500,1729053033315,-500.0,0.00010999,2]
[340332501,1729053033330,-500.0,0.00010999,2]
[340332502,1729053033340,-604.77958972,0.00010999,2]
[340332503,1729053033349,-231.48379591,0.00010999,2]
[340332504,1729053033359,-509.0,0.00011,2]
[340332505,1729053033368,-65978.30825449,0.00011,2]
[340332506,1729053033400,-906.05505204,0.00011,2]
[340332507,1729053033411,-11340.0000139,0.00011,2]
[340332509,1729053038235,-515.0,0.00011,2]
[340332510,1729053038244,-67050.50541756,0.00011,2]
[340332511,1729053038323,-534.21079904,0.00011,2]
[340332512,1729053038333,-1258.14965662,0.00011,2]
[340332513,1729053038344,-851.19317793,0.00011,2]
[340332514,1729053038381,-1026.58752174,0.00011,2]
[340332515,1729053038393,-5466.62328587,0.00011,2]
[340332516,1729053038403,-3721.7,0.00011,2]
[340332517,1729053038442,-775.58604951,0.00011,2]
[340332518,1729053038455,-285.04833206,0.00011,2]
[340332519,1729053038501,-671.4479872,0.00011,2]
[340332520,1729053038512,-671.90935304,0.00011,2]
[340332529,1729053040256,-849.70419934,0.00011,2]
[340332530,1729053040267,-576.68923984,0.00011,2]
[340332531,1729053040318,-628.34965022,0.00011,2]
[340332532,1729053040329,-537.85382787,0.00011,2]
[340332533,1729053040341,-672.76105749,0.00011,2]
[340332534,1729053040352,-705.58281612,0.00011,2]
[340332535,1729053040378,-5184.20181618,0.00011,2]
[340332536,1729053040492,-779.8659024,0.00011,2]
[340332537,1729053040551,-937.79766621,0.00011,2]
[340332538,1729053040611,-378.800015,0.00011,2]
[340332539,1729053040623,-3422.99865,0.00011,2]
[340332636,1729053043286,-662.8610443,0.00011,2]
[340332637,1729053043297,-451.62719879,0.00011,2]
[340332638,1729053043343,-954.42221295,0.00011,2]
[340332639,1729053043402,-4939.73983759,0.00011,2]
[340332640,1729053043414,-1698.50865233,0.00011,2]
[340332641,1729053043425,-11238.14837287,0.00011,2]
[340332642,1729053043435,-8168.80531959,0.00011,2]
[340332643,1729053043446,-114758.5360473,0.00011,2]
[340332644,1729053043460,-1298.75000012,0.00011,2]
[340332645,1729053043573,-663.57741258,0.00011,2]
[340332646,1729053043586,-1105.09963161,0.00011,2]
[340332686,1729053046266,-170.97578989,0.00010999,2]
[340332687,1729053046275,-516.30084986,0.00011,2]
[340332688,1729053046286,-477.7165592,0.00011,2]
[340332689,1729053046325,-2402.1387,0.00011,2]
[340332690,1729053046384,-37598.62219278,0.00011,2]
[340332691,1729053046398,-9506.85854717,0.00011,2]
[340332692,1729053046443,-2361.54600829,0.00011,2]
[340332693,1729053046502,-681.73373369,0.00011,2]
[340332694,1729053046514,-6339.86155099,0.00011,2]
[340332698,1729053198636,469.35,9.619e-05,2]
[340332704,1729053881083,465.36,8.32e-05,2]
[340332706,1729053925651,8749.16,0.00010196,2]
[340332707,1729053962410,250.0,0.00010216,2]
[340332713,1729054232303,-438.97982347,0.00010275,2]
[340332723,1729054232411,-561.02017653,0.00010275,2]
[340332725,1729054232424,-208.44,0.00010284,2]
[340332727,1729054232434,-465.36,0.00010584,2]
[340332729,1729054232443,-3072.861782,0.0001079,2]
[340332731,1729054232452,-222.0,0.00010844,2]
[340332732,1729054232461,-3316.84426707,0.00010844,2]
[340332734,1729054232470,-159.80859025,0.00010873,2]
[340332736,1729054232479,-608.14870265,0.00010899,2]
[340332737,1729054232488,-150.0,0.00010899,2]
[340332739,1729054232497,-300.0,0.00010899,2]
[340332740,1729054232505,-24690.563,0.000109,2]
[340332742,1729054232515,-357.0241,0.000109,2]
[340332744,1729054232523,-40594.3947,0.000109,2]
[340332745,1729054232532,-239.22765398,0.000109,2]
[340332747,1729054232541,-212.243,0.00010923,2]
[340332749,1729054232550,-1515.61,0.00010923,2]
[340332750,1729054232559,-499.99,0.00010923,2]
[340332752,1729054232568,-172.44,0.00010939,2]
[340332754,1729054232577,-161.46,0.00010959,2]
[340332756,1729054232586,-250.0,0.00010959,2]
[340332758,1729054232595,-158.96,0.00010959,2]
[340332760,1729054232604,-248.51,0.00010959,2]
[340332761,1729054232613,-3086.9597727,0.00010995,2]
[340332763,1729054232621,-6301.2196499,0.00010995,2]
[340332765,1729054232631,-222.0,0.00010998,2]
[340332767,1729054232640,-294.10819062,0.00010999,2]
[340332768,1729054232649,-500.0,0.00010999,2]
[340332770,1729054232658,-509.25114389,0.00010999,2]
[340332772,1729054232667,-500.0,0.00010999,2]
[340332773,1729054232676,-255.26635192,0.00010999,2]
[340332775,1729054232685,-222.0,0.00010999,2]
[340332777,1729054232694,-509.02828149,0.00010999,2]
[340332778,1729054232703,-500.0,0.00010999,2]
[340332780,1729054232712,-500.0,0.00010999,2]
[340332782,1729054232721,-500.0,0.00010999,2]
[340332784,1729054232729,-520.31494159,0.00010999,2]
[340332786,1729054232738,-510.3800421,0.00010999,2]
[340332787,1729054232747,-1128.01,0.00010999,2]
[340332788,1729054232756,-1128.01,0.00010999,2]
[340332789,1729054232766,-1128.01,0.00010999,2]
[340332790,1729054232775,-1128.01,0.00010999,2]
[340332791,1729054232784,-1128.01,0.00010999,2]
[340332792,1729054232793,-1128.01,0.00010999,2]
[340332793,1729054232802,-1128.01,0.00010999,2]
[340332794,1729054232811,-1128.01,0.00010999,2]
[340332795,1729054232820,-1128.01,0.00010999,2]
[340332796,1729054232830,-1128.01,0.00010999,2]
[340332797,1729054232839,-1128.01,0.00010999,2]
[340332798,1729054232848,-1128.01,0.00010999,2]
[340332799,1729054232857,-1128.01,0.00010999,2]
[340332800,1729054232866,-1128.01,0.00010999,2]
[340332801,1729054232875,-1128.01,0.00010999,2]
[340332802,1729054232885,-1128.01,0.00010999,2]
[340332803,1729054232894,-1128.01,0.00010999,2]
[340332804,1729054232903,-1128.01,0.00010999,2]
[340332805,1729054232912,-1128.01,0.00010999,2]
[340332806,1729054232924,-1128.01,0.00010999,2]
[340332807,1729054232933,-1128.01,0.00010999,2]
[340332808,1729054232943,-1128.01,0.00010999,2]
[340332809,1729054232952,-1128.01,0.00010999,2]
[340332810,1729054232961,-1128.13145879,0.00010999,2]
[340332811,1729054232970,-297.21285991,0.00010999,2]
[340332812,1729054232979,-531.53,0.00010999,2]
[340332813,1729054232989,-500.0,0.00010999,2]
[340332814,1729054232998,-407.15334252,0.00010999,2]
[340332815,1729054233007,-500.0,0.00010999,2]
[340332816,1729054233016,-372.43746989,0.00010999,2]
[340332817,1729054233025,-467.05791161,0.00010999,2]
[340332818,1729054233034,-270572.04153149,0.00011,2]
[340332819,1729054233046,-1511.57,0.00011,2]
[340332820,1729054233057,-2110.52277274,0.00011,2]
[340332821,1729054233068,-1322.558539,0.00011,2]
[340332822,1729054233079,-982.42301948,0.00011,2]
[340332823,1729054233097,-35800.00000341,0.00011,2]